fUSD/lending_fUSD_20250526
["ID","MTS","AMOUNT","RATE_DAILY","PERIOD"]
[362388046,1748245299842,-233.04,0.00041438,120]
[362388047,1748245299888,-150.5,0.000415,120]
[362388048,1748245299931,-29644.85546316,0.000415,120]
[362388049,1748245299974,-16278.52,0.000415,30]
[362388050,1748245300016,-1003.8,0.000415,90]
[362388051,1748245300059,-150.5,0.0004151,120]
[362388052,1748245300100,-150.5,0.0004152,120]
[362388053,1748245300142,-177596.09828581,0.00041553,120]
[362388054,1748245300185,-475.47033,0.00041595,30]
[362388055,1748245300228,-288.77319,0.000416,120]
[362388056,1748245300272,-277.1,0.000416,120]
[362388057,1748245300314,-277.1,0.000416,120]
[362388058,1748245300359,-277.1,0.000416,120]
[362388059,1748245300404,-150.0,0.00041603,120]
[362388060,1748245300450,-150.0,0.00041625,120]
[362388061,1748245300494,-500.0,0.00041643,60]
[362388062,1748245300554,-5155.29564712,0.000417,60]
[362388063,1748245300602,-150.0,0.00041765,120]
[362388064,1748245300649,-475.47033,0.00041795,30]
[362388065,1748245300696,-20895.12757726,0.000418,60]
[362388066,1748245300742,-5200.0,0.000418,120]
[362388067,1748245300790,-1500.0,0.0004186,42]
[362388068,1748245300838,-5645.49546515,0.0004188,120]
[362388069,1748245300886,-150.0,0.00041899,120]
[362388070,1748245300934,-18247.63162978,0.000419,120]
[362388071,1748245300979,-20000.0,0.000419,120]
[362388072,1748245301025,-882.0,0.000419,120]
[362388073,1748245301069,-1356.44315337,0.000419,30]
[362388074,1748245301289,-231.32420352,0.000419,45]
[362388075,1748245301336,-446.14,0.00041917,120]
[362388076,1748245301384,-170.26,0.00041918,30]
[362388077,1748245301430,-170.26,0.00041918,30]
[362388078,1748245301478,-170.26,0.00041918,30]
[362388079,1748245301528,-150.83,0.00041918,30]
[362388080,1748245301576,-300.0,0.00041918,30]
[362388081,1748245301624,-340.33,0.00041918,30]
[362388082,1748245301673,-150.0,0.0004193,120]
[362388083,1748245301720,-361.184703,0.00041933,30]
[362388084,1748245301768,-1754.75140379,0.00041933,30]
[362388085,1748245301815,-4859.10427737,0.00041933,30]
[362388086,1748245301867,-150.5,0.0004197,120]
[362388087,1748245301912,-318.0,0.0004197,120]
[362388088,1748245301955,-318.0,0.0004197,120]
[362388089,1748245302000,-6119.0,0.0004197,120]
[362388090,1748245302045,-6119.0,0.0004197,120]
[362388091,1748245302094,-150.0,0.00041977,120]
[362388092,1748245302139,-150.5,0.0004198,120]
[362388093,1748245302183,-238.45,0.0004198,120]
[362388094,1748245302228,-318.0,0.0004198,120]
[362388095,1748245302273,-318.0,0.0004198,120]
[362388096,1748245302319,-318.0,0.0004198,120]
[362388097,1748245302367,-321.69,0.0004198,120]
[362388098,1748245302414,-6119.0,0.0004198,120]
[362388099,1748245302463,-6119.0,0.0004198,120]
[362388100,1748245302519,-6119.0,0.0004198,120]
[362388101,1748245302567,-6127.34,0.0004198,120]
[362388102,1748245302620,-150.5,0.0004199,120]
[362388103,1748245302667,-253.5,0.0004199,120]
[362388104,1748245302715,-318.0,0.0004199,120]
[362388105,1748245302760,-318.0,0.0004199,120]
[362388106,1748245302809,-318.0,0.0004199,120]
[362388107,1748245302859,-318.0,0.0004199,120]
[362388108,1748245302907,-244.06,0.0004199,120]
[362388109,1748245302956,-6119.0,0.0004199,120]
[362388110,1748245303003,-6119.0,0.0004199,120]
[362388111,1748245303049,-6119.0,0.0004199,120]
[362388112,1748245303096,-6119.0,0.0004199,120]
[362388113,1748245303142,-475.47033,0.00041995,30]
[362388114,1748245303190,-50000.0,0.00041996,120]
[362388115,1748245303236,-42453.50059686,0.00041998,60]
[362388116,1748245303285,-50000.0,0.00042,42]
[362388117,1748245303329,-381.53587453,0.00042,120]
[362388118,1748245303374,-351.0,0.00042,120]
[362388119,1748245303418,-275.0,0.00042,120]
[362388120,1748245303463,-295.0,0.00042,120]
[362388121,1748245303507,-314.0,0.00042,120]
[362388122,1748245303555,-1500.0,0.00042,120]
[362388123,1748245303601,-600.0,0.00042,120]
[362388124,1748245303647,-6773.28878278,0.00042,30]
[362388125,1748245303694,-6122.27951054,0.00042,120]
[362388126,1748245303740,-50000.0,0.00042,120]
[362388127,1748245303786,-10013.15628745,0.00042,120]
[362388128,1748245303831,-4039.4412721,0.00042,120]
[362388129,1748245303879,-2008.68540679,0.00042,30]
[362388130,1748245303925,-340.34127065,0.00042,30]
[362388131,1748245303971,-18048.39502549,0.00042,120]
[362388132,1748245304017,-1016.46,0.00042,120]
[362388133,1748245304065,-14933.4662852,0.00042,120]
[362388134,1748245304111,-10000.0,0.00042,120]
[362388135,1748245304157,-10000.0,0.00042,120]
[362388136,1748245304202,-41470.76431486,0.00042,120]
[362388137,1748245304247,-10000.99999999,0.00042,120]
[362388138,1748245304294,-500.0,0.00042,30]
[362388139,1748245304340,-700.0,0.00042,120]
[362388140,1748245304385,-8500.0,0.00042,120]
[362388141,1748245304431,-44198.16319944,0.00042,120]
[362388142,1748245304475,-1364.63,0.00042,120]
[362388143,1748245304526,-1004.0,0.00042,100]
[362388144,1748245304575,-10800.0,0.00042,120]
[362388145,1748245304628,-1652.72162459,0.00042,30]
[362388146,1748245304675,-876.33249366,0.00042,30]
[362388147,1748245304723,-57373.91138313,0.00042,120]
[362388148,1748245304769,-184.20796979,0.00042,30]
[362388149,1748245304815,-1791.39458937,0.00042,30]
[362388150,1748245304861,-1580.0,0.00042,120]
[362388151,1748245304906,-5000.0,0.00042,120]
[362388152,1748245304951,-5554.63124461,0.00042,30]
[362388153,1748245304995,-500.0,0.00042,30]
[362388155,1748245305041,-270.98,0.00042,120]
[362388156,1748245305088,-507890.42481869,0.00042,30]
[362388157,1748245305135,-1328.68216718,0.00042,60]
[362388158,1748245305179,-320.0,0.00042,120]
[362388159,1748245305224,-11799.0,0.00042,30]
[362388160,1748245305268,-816.0097867,0.00042,120]
[362388161,1748245305315,-150.0,0.00042039,120]
[362388162,1748245305359,-307.77921,0.000421,120]
[362388163,1748245305404,-509.65215358,0.00042108,60]
[362388165,1748245305451,-2000.0,0.00042114,120]
[362388166,1748245305497,-2000.0,0.00042114,120]
[362388167,1748245305542,-2000.0,0.00042114,120]
[362388168,1748245305587,-2000.0,0.00042114,120]
[362388169,1748245305633,-2000.0,0.00042114,120]
[362388170,1748245305847,-2000.0,0.00042114,120]
[362388172,1748245305898,-2000.0,0.00042114,120]
[362388173,1748245305945,-2000.0,0.00042114,120]
[362388174,1748245305990,-2000.0,0.00042114,120]
[362388175,1748245306036,-1425.320244,0.00042114,120]
[362388176,1748245306089,-1628.87913517,0.00042117,30]
[362388177,1748245306137,-1710.49649215,0.00042169,30]
[362388178,1748245306184,-475.47033,0.00042195,30]
[362388179,1748245306232,-500.0,0.00042198,60]
[362388180,1748245306278,-2065.78996927,0.000422,30]
[362388182,1748245306325,-338.94370481,0.000422,120]
[362388183,1748245306371,-150.0,0.00042217,120]
[362388184,1748245306419,-500.0,0.00042262,60]
[362388185,1748245306464,-51045.54209328,0.0004227,30]
[362388186,1748245306512,-2000.0,0.000423,120]
[362388187,1748245306557,-955.52,0.000423,120]
[362388188,1748245306603,-1023.29716902,0.00042323,30]
[362388189,1748245306650,-150.0,0.00042378,120]
[362388190,1748245306696,-475.47033,0.00042395,30]
[362388191,1748245306742,-4313.17444103,0.000424,120]
[362388192,1748245306787,-330156.19,0.0004242,42]
[362388193,1748245306834,-1000000.0,0.0004242,120]
[362388194,1748245306883,-3722.0,0.00042432,120]
[362388195,1748245306932,-158600.0,0.0004244,120]
[362388196,1748245306976,-155.0,0.00042453,120]
[362388197,1748245307022,-375.83,0.00042455,120]
[362388198,1748245307065,-156.0,0.00042456,120]
[362388199,1748245307112,-525.72477546,0.000425,60]
[362388200,1748245307155,-200.0,0.000425,120]
[362388201,1748245307202,-2162.0,0.000425,120]
[362388202,1748245307250,-28282.34588553,0.00042539,120]
[362388203,1748245307300,-321.858994,0.00042595,120]
[362388204,1748245307346,-475.47033,0.00042595,30]
[362388205,1748245307394,-11289.0,0.000426,120]
[362388206,1748245307442,-150.0,0.00042606,120]
[362388207,1748245307493,-500.0,0.00042607,120]
[362388208,1748245307541,-1526.86998768,0.0004268,42]
[362388209,1748245307590,-733837.28,0.0004269,42]
[362388210,1748245307637,-225.11862698,0.00042739,60]
[362388211,1748245307685,-3288.99,0.000428,90]
[362388212,1748245307731,-736.83824544,0.000429,120]
[362388213,1748245307779,-25110.0,0.00042913,120]
[362388214,1748245307825,-639582.63,0.0004296,120]
[362388215,1748245307875,-150.0,0.00042971,120]
[362388216,1748245307925,-50000.0,0.00043,43]
[362388217,1748245307972,-1366.0,0.00043,120]
[362388218,1748245308019,-2846.93113935,0.00043,120]
[362388219,1748245308065,-17772.38468693,0.00043,30]
[362388220,1748245308111,-235.9298079,0.00043,120]
[362388221,1748245308156,-54056.6775128,0.00043,120]
[362388222,1748245308203,-10441.0,0.00043,120]
[362388223,1748245308250,-207.22275315,0.00043,120]
[362388224,1748245308296,-488.29477943,0.00043,120]
[362388225,1748245308342,-217.07760662,0.00043,120]
[362388226,1748245308388,-10000.0,0.00043,120]
[362388227,1748245308434,-36649.0,0.00043,120]
[362388228,1748245308482,-3903.64,0.00043,120]
[362388229,1748245308532,-775.51,0.00043,120]
[362388230,1748245308578,-766.6,0.00043,120]
[362388231,1748245308629,-1219.86,0.00043,120]
[362388232,1748245308676,-689.0,0.00043,120]
[362388233,1748245308726,-3705.69,0.00043,120]
[362388234,1748245308781,-741.23,0.00043,120]
[362388235,1748245308828,-1459.06,0.00043,120]
[362388236,1748245308875,-794.44,0.00043,120]
[362388237,1748245308921,-1175.65,0.00043,120]
[362388238,1748245308966,-838.91,0.00043,120]
[362388239,1748245309014,-3009.74122356,0.0004313,120]
[362388240,1748245309060,-250.0,0.00043151,90]
[362388241,1748245309107,-13137.11633432,0.0004328,60]
[362388242,1748245309154,-446.14,0.00043287,120]
[362388243,1748245309201,-150.0,0.00043288,30]
[362388244,1748245309248,-150.0,0.00043288,30]
[362388245,1748245309296,-150.0,0.00043288,30]
[362388246,1748245309342,-150.0,0.00043356,120]
[362388247,1748245309391,-150.0,0.00043366,120]
[362388248,1748245309438,-2055.82721143,0.0004344,41]
[362388249,1748245309495,-1739.86909216,0.0004347,30]
[362388250,1748245309572,-888.0,0.0004357,30]
[362388251,1748245309627,-239.05,0.000436,120]
[362388252,1748245309680,-247.53,0.000436,120]
[362388253,1748245309729,-241.75,0.000436,120]
[362388254,1748245309779,-7478.45,0.000436,120]
[362388255,1748245309829,-257.45,0.000436,120]
[362388256,1748245309880,-998.17,0.000436,120]
[362388257,1748245309931,-256.46,0.000436,120]
[362388258,1748245309979,-270.23,0.000436,120]
[362388259,1748245310025,-1054.68,0.000436,120]
[362388260,1748245310073,-257.04,0.000436,120]
[362388261,1748245310119,-534.33,0.000436,120]
[362388262,1748245310166,-233.74,0.000436,120]
[362388263,1748245310213,-286.46,0.000436,120]
[362388264,1748245310261,-3333.88,0.00043671,120]
[362388265,1748245310310,-2964.93141274,0.000437,120]
[362388266,1748245310358,-483.71467276,0.000438,30]
[362388267,1748245310628,-153.49771273,0.000438,120]
[362388268,1748245310676,-5000.0,0.000438,120]
[362388269,1748245310727,-150.0,0.00043806,120]
[362388270,1748245310773,-150.0,0.00043835,120]
[362388271,1748245310820,-2000.0,0.000439,30]
[362388272,1748245310870,-50000.0,0.00044,44]
[362388273,1748245310918,-2000.0,0.00044,120]
[362388274,1748245310963,-23474.60932278,0.00044,120]
[362388275,1748245311009,-1008.13552306,0.00044,120]
[362388276,1748245311053,-11574.23680798,0.00044,30]
[362388277,1748245311101,-1000.0,0.00044,120]
[362388278,1748245311146,-1206.94348146,0.00044,120]
[362388279,1748245311193,-5000.0,0.00044,120]
[362388280,1748245311239,-500.0,0.00044,120]
[362388281,1748245311286,-527.101331,0.00044,57]
[362388282,1748245311332,-500.0,0.00044119,120]
[362388283,1748245311379,-472.39134222,0.0004439,120]
[362388284,1748245311430,-1000.0,0.000444,120]
[362388285,1748245311474,-50000.0,0.000445,30]
[362388286,1748245311527,-449.89710638,0.000445,120]
[362388287,1748245311573,-3223.0,0.00044543,120]
[362388288,1748245311635,-8425.34179306,0.00044545,120]
[362388289,1748245311687,-446.14,0.00044657,120]
[362388290,1748245311740,-4404.0,0.00044671,120]
[362388291,1748245311790,-2144.651,0.00044671,120]
[362388292,1748245311856,-3053.56298292,0.0004487,43]
[362388293,1748245311913,-140890.0,0.0004487,120]
[362388294,1748245311960,-4385.38290975,0.000449,30]
[362388295,1748245312008,-193.71295997,0.000449,30]
[362388296,1748245312054,-434.51976096,0.000449,30]
[362388297,1748245312099,-2059.96884403,0.0004499,30]
[362388298,1748245312146,-1000.0,0.00044999,120]
[362388299,1748245312195,-50000.0,0.00045,45]
[362388300,1748245312243,-9830.3463006,0.00045,30]
[362388301,1748245312289,-540.87147594,0.00045,120]
[362388302,1748245312336,-50000.0,0.00045,30]
[362388303,1748245312385,-2000.0,0.00045,120]
[362388304,1748245312435,-3000.0,0.00045,45]
[362388305,1748245312489,-10056.95810627,0.00045,120]
[362388306,1748245312556,-20000.0,0.00045,30]
[362388307,1748245312608,-20000.0,0.00045,30]
[362388308,1748245312658,-151.32,0.00045,30]
[362388309,1748245312709,-14066.9587213,0.00045,120]
[362388310,1748245312763,-19261.46160837,0.00045,30]
[362388311,1748245312816,-8914.0247719,0.00045,120]
[362388312,1748245320698,-500.0,0.00038931,30]
[362388313,1748245320747,-500.0,0.00038931,30]
[362388314,1748245320794,-500.0,0.00038931,30]
[362388315,1748245320843,-500.0,0.00038931,30]
[362388316,1748245320892,-500.0,0.00038931,30]
[362388317,1748245320938,-500.0,0.00038931,30]
[362388318,1748245320985,-500.0,0.00038931,30]
[362388319,1748245321033,-500.0,0.00038931,30]
[362388320,1748245321084,-500.0,0.00038931,30]
[362388321,1748245321137,-500.0,0.00038931,30]
[362388322,1748245321200,-500.0,0.00038931,30]
[362388323,1748245321254,-500.0,0.00038931,30]
[362388324,1748245321311,-500.0,0.00038931,30]
[362388325,1748245321367,-500.0,0.00038931,30]
[362388326,1748245321425,-500.0,0.00038931,30]
[362388327,1748245321479,-500.0,0.00038931,30]
[362388328,1748245321535,-500.0,0.00038931,30]
[362388329,1748245321591,-500.0,0.00038931,30]
[362388330,1748245321649,-500.0,0.00038931,30]
[362388331,1748245321704,-500.0,0.00038931,30]
[362388332,1748245321764,-500.0,0.00038931,30]
[362388333,1748245321829,-500.0,0.00038931,30]
[362388334,1748245321884,-500.0,0.00038931,30]
[362388335,1748245321938,-500.0,0.00038931,30]
[362388336,1748245321991,-500.0,0.00038931,30]
[362388337,1748245322045,-500.0,0.00038931,30]
[362388338,1748245322096,-500.0,0.00038931,30]
[362388339,1748245322152,-500.0,0.00038931,30]
[362388340,1748245322213,-10000.0,0.0004,120]
[362388341,1748245322264,-10000.0,0.0004,120]
[362388342,1748245322337,-150.0,0.00041722,120]
[362388343,1748245322397,-1085.9752281,0.00045,120]
[362388344,1748245322449,-58701.32976683,0.00045,30]
[362388345,1748245322503,-500.0,0.00045,120]
[362388346,1748245322553,-300.0,0.00045,30]
[362388347,1748245322602,-1081.91093783,0.00045,32]
[362388348,1748245322651,-155.07,0.00045,40]
[362388349,1748245322700,-539.00099869,0.00045,32]
[362388350,1748245322752,-2392.5631938,0.00045,120]
[362388351,1748245322802,-5000.0,0.00045,120]
[362388352,1748245322854,-11000.0,0.00045,60]
[362388353,1748245322901,-60055.45328935,0.00045,30]
[362388354,1748245322950,-161.8,0.00045,85]
[362388355,1748245322999,-269.50110812,0.00045,120]
[362388356,1748245323058,-360.0,0.00045,120]
[362388357,1748245323107,-1541.08905245,0.00045,120]
[362388358,1748245323158,-19306.06363017,0.00045,120]
[362388359,1748245323208,-10000.0,0.00045,45]
[362388360,1748245323262,-10000.0,0.00045,120]
[362388361,1748245323314,-7829.69,0.00045,120]
[362388362,1748245323366,-7829.69,0.00045,120]
[362388363,1748245323417,-7829.69,0.00045,120]
[362388364,1748245323470,-7829.69,0.00045,120]
[362388365,1748245323520,-17607.16,0.00045,120]
[362388366,1748245323573,-17607.16,0.00045,120]
[362388367,1748245323627,-17607.16,0.00045,120]
[362388368,1748245323681,-17607.16,0.00045,120]
[362388369,1748245323734,-3521.43,0.00045,120]
[362388370,1748245323784,-3521.43,0.00045,120]
[362388371,1748245323836,-3521.43,0.00045,120]
[362388372,1748245323889,-3521.43,0.00045,120]
[362388373,1748245323940,-704.29,0.00045,120]
[362388374,1748245323990,-704.29,0.00045,120]
[362388375,1748245324042,-704.29,0.00045,120]
[362388376,1748245324092,-704.29,0.00045,120]
[362388377,1748245324144,-7000.0,0.00045,120]
[362388378,1748245324192,-197.84,0.00045,120]
[362388379,1748245324241,-197.84,0.00045,120]
[362388380,1748245324289,-593.48,0.00045,120]
[362388381,1748245324336,-593.48,0.00045,120]
[362388382,1748245324388,-593.48,0.00045,120]
[362388383,1748245324435,-593.48,0.00045,120]
[362388384,1748245324486,-2068.0,0.00045,120]
[362388385,1748245324537,-2068.0,0.00045,120]
[362388386,1748245324588,-2068.0,0.00045,120]
[362388387,1748245324637,-2068.0,0.00045,120]
[362388388,1748245324686,-413.6,0.00045,120]
[362388389,1748245324734,-413.6,0.00045,120]
[362388390,1748245324782,-413.6,0.00045,120]
[362388391,1748245324835,-165.44,0.00045,120]
[362388392,1748245324884,-165.44,0.00045,120]
[362388393,1748245324932,-464.27,0.00045,120]
[362388394,1748245324979,-464.27,0.00045,120]
[362388395,1748245325030,-464.27,0.00045,120]
[362388396,1748245325236,-185.71,0.00045,120]
[362388397,1748245325287,-185.71,0.00045,120]
[362388398,1748245325335,-786.07,0.00045,120]
[362388399,1748245325385,-786.07,0.00045,120]
[362388400,1748245325434,-786.07,0.00045,120]
[362388401,1748245325484,-786.07,0.00045,120]
[362388402,1748245325540,-157.21,0.00045,120]
[362388403,1748245325590,-36649.0,0.00045,120]
[362388404,1748245325640,-175.25,0.00045,120]
[362388405,1748245325690,-175.25,0.00045,120]
[362388406,1748245325738,-159.86,0.00045,120]
[362388407,1748245325788,-373.10446113,0.00045,120]
[362388408,1748245325836,-1086.86218028,0.00045,120]
[362388409,1748245325891,-10000.0,0.00045,120]
[362388410,1748245325941,-233.04,0.00045205,120]
[362388411,1748245325990,-250.0,0.00045308,90]
[362388412,1748245326040,-806.25,0.00045479,30]
[362388413,1748245326090,-806.25,0.00045479,30]
[362388414,1748245326141,-806.25,0.00045479,30]
[362388415,1748245326191,-806.25,0.00045479,30]
[362388416,1748245326241,-806.25,0.00045479,30]
[362388417,1748245326294,-1567.9,0.00045479,30]
[362388418,1748245326344,-50000.0,0.000455,31]
[362388419,1748245326397,-861.15252695,0.000455,120]
[362388420,1748245326448,-345.36307,0.00045631,120]
[362388421,1748245326499,-5394.64,0.00045671,120]
[362388422,1748245326551,-3000.0,0.0004568,46]
[362388423,1748245326600,-1000000.0,0.00045699,120]
[362388424,1748245326652,-984.31295453,0.000457,120]
[362388425,1748245326702,-1000.0,0.000458,30]
[362388426,1748245326754,-233.0,0.000458,30]
[362388427,1748245326804,-1013.09,0.000458,120]
[362388428,1748245326856,-2603.4919384,0.000458,110]
[362388429,1748245326904,-9429.78098458,0.000459,120]
[362388430,1748245326953,-2909.78040172,0.000459,119]
[362388431,1748245327003,-1000.0,0.00045999,120]
[362388432,1748245327055,-50000.0,0.00046,46]
[362388433,1748245327102,-4000.0,0.00046,120]
[362388434,1748245327151,-2000.0,0.00046,120]
[362388435,1748245327198,-50000.0,0.00046,32]
[362388436,1748245327249,-500.0,0.00046,30]
[362388437,1748245327298,-1000.0,0.00046,30]
[362388438,1748245327346,-3122.09367175,0.00046,30]
[362388439,1748245327393,-500.0,0.00046,120]
[362388440,1748245327444,-346751.11411055,0.00046,120]
[362388441,1748245327493,-10000.0,0.00046,120]
[362388442,1748245327546,-5307.66208919,0.00046,120]
[362388443,1748245327595,-3234.80004134,0.00046,120]
[362388444,1748245327646,-446.14,0.00046027,120]
[362388445,1748245327696,-453.7,0.00046027,30]
[362388446,1748245327745,-453.7,0.00046027,30]
[362388447,1748245327797,-453.7,0.00046027,30]
[362388448,1748245327846,-453.7,0.00046027,30]
[362388449,1748245327894,-682.19201422,0.000461,120]
[362388450,1748245327940,-274.80791132,0.00046426,30]
[362388451,1748245327989,-806.25,0.00046438,30]
[362388452,1748245328039,-50000.0,0.000465,34]
[362388453,1748245328087,-5000.0,0.0004657,120]
[362388454,1748245328139,-500.0,0.0004657,30]
[362388455,1748245328188,-506.07072412,0.00046575,120]
[362388456,1748245328237,-1036.35295965,0.00046575,60]
[362388457,1748245328511,2000.0,0.00041996,120]
[362388458,1748245328577,2000.0,0.00041996,120]
[362388459,1748245328645,2000.0,0.00041996,120]
[362388460,1748245328752,1754.75140379,0.00046505,30]
[362388461,1748245328853,4859.10427737,0.00046505,30]
[362388462,1748245328908,2000.0,0.00041996,120]
[362388463,1748245328979,2000.0,0.00041996,120]
[362388464,1748245329130,2000.0,0.00041996,120]
[362388465,1748245329258,238.88898869,0.00044999,120]
[362388466,1748245329311,1077.0,0.00041671,30]
[362388467,1748245329402,200.0,0.00044999,120]
[362388468,1748245329681,207.4,0.00044999,120]
[362388469,1748245329755,215.0738,0.00044999,120]
[362388470,1748245329837,223.0315306,0.00044999,120]
[362388471,1748245329890,1754.75140379,0.00044932,120]
[362388472,1748245329950,231.28369723,0.00044999,120]
[362388473,1748245330014,239.84119403,0.00044999,120]
[362388474,1748245330159,248.71531821,0.00044999,120]
[362388475,1748245330737,257.91778498,0.00044999,120]
[362388476,1748245331379,267.46074303,0.00044999,120]
[362388477,1748245331930,158.15078314,0.00044999,120]
[362388478,1748245332014,277.35679052,0.00044999,120]
[362388479,1748245332747,287.61899177,0.00044999,120]
[362388480,1748245333423,298.26089446,0.00044999,120]
[362388481,1748245334129,309.29654756,0.00044999,120]
[362388482,1748245334742,320.74051982,0.00044999,120]
[362388483,1748245335388,332.60791905,0.00044999,120]
[362388484,1748245336026,344.91441206,0.00044999,120]
[362388485,1748245336671,357.6762453,0.00044999,120]
[362388486,1748245337294,370.91026638,0.00044999,120]
[362388487,1748245337932,500.0,0.00037959,60]
[362388488,1748245337985,384.63394623,0.00044999,120]
[362388489,1748245338683,398.86540225,0.00044999,120]
[362388490,1748245340370,13274.89923295,0.00046505,30]
[362388491,1748245340927,6146.81686375,0.00046505,30]
[362388492,1748245341747,33457.3205206,0.00046505,30]
[362388493,1748245341994,151.0,0.00044999,120]
[362388494,1748245342626,156.587,0.00044999,120]
[362388495,1748245342719,155.0,0.0004,30]
[362388496,1748245343358,162.380719,0.00044999,120]
[362388497,1748245343957,160.0,0.000416,40]
[362388498,1748245344009,168.3888056,0.00044999,120]
[362388499,1748245344679,160.0,0.000406,35]
[362388500,1748245345104,160.0,0.000396,31]
[362388501,1748245345180,174.61919141,0.00044999,120]
[362388502,1748245345845,181.08010149,0.00044999,120]
[362388503,1748245346654,187.78006525,0.00044999,120]
[362388504,1748245347287,194.72792766,0.00044999,120]
[362388505,1748245347941,201.93286099,0.00044999,120]
[362388506,1748245348558,160.0,0.00041671,30]
[362388507,1748245348618,209.40437684,0.00044999,120]
[362388508,1748245349049,160.0,0.00041671,30]
[362388509,1748245349238,217.15233878,0.00044999,120]
[362388510,1748245349642,160.0,0.00041671,30]
[362388511,1748245350192,160.0,0.00041671,30]
[362388512,1748245350665,160.0,0.00041671,30]
[362388513,1748245351100,160.0,0.00041671,30]
[362388514,1748245351482,160.0,0.00041671,30]
[362388515,1748245351883,160.0,0.00041671,30]
[362388516,1748245352828,160.0,0.00041671,30]
[362388517,1748245353322,160.0,0.00041671,30]
[362388518,1748245353958,160.0,0.00041671,30]
[362388519,1748245354355,160.0,0.00041671,30]
[362388520,1748245354791,160.0,0.00041671,30]
[362388521,1748245355314,160.0,0.00041671,30]
[362388522,1748245355730,160.0,0.00041671,30]
[362388523,1748245356316,160.0,0.00041671,30]
[362388524,1748245356853,160.0,0.00041671,30]
[362388525,1748245357345,160.0,0.00041671,30]
[362388526,1748245358005,160.0,0.00041671,30]
[362388527,1748245358635,160.0,0.00041671,30]
[362388528,1748245359310,160.0,0.00041671,30]
[362388529,1748245359842,160.0,0.00041671,30]
[362388530,1748245360536,160.0,0.00041671,30]
[362388531,1748245361102,160.0,0.00041671,30]
[362388532,1748245361777,160.0,0.00041671,30]
[362388533,1748245361880,150.0,0.00041671,30]
[362388534,1748245362259,160.0,0.00041671,30]
[362388535,1748245362832,160.0,0.00041671,30]
[362388536,1748245363256,160.0,0.00041671,30]
[362388537,1748245363676,160.0,0.00041671,30]
[362388538,1748245364052,160.0,0.00041671,30]
[362388539,1748245364477,186.599999,0.00041671,30]
[362388540,1748245369612,160.0,0.00041671,30]
[362388541,1748245369883,160.0,0.00041671,30]
[362388542,1748245370276,160.0,0.00041671,30]
[362388543,1748245370753,160.0,0.00041671,30]
[362388544,1748245372342,160.0,0.00041671,30]
[362388545,1748245372812,160.0,0.00041671,30]
[362388546,1748245373466,160.0,0.00041671,30]
[362388547,1748245373947,160.0,0.00041671,30]
[362388548,1748245374467,160.0,0.00041671,30]
[362388549,1748245374891,160.0,0.00041671,30]